bitfinex-derivatives/quotes_BTCF0:USTF0_20250609
["timestamp","ask_amount","ask_price","bid_price","bid_amount"]
[1749477935084,0.26086929,107230.0,107220.0,1.22729356]
[1749477935286,0.71554929,107230.0,107220.0,1.22729356]
[1749477937493,0.71554929,107230.0,107220.0,1.43006882]
[1749477938096,0.07446259,107230.0,107220.0,1.43006882]
[1749477938399,0.24533136,107230.0,107220.0,1.43006882]
[1749477938594,0.6410467,107230.0,107220.0,0.67499453]
[1749477938789,0.6414467,107230.0,107220.0,1.07011609]
[1749477938993,0.7411467,107230.0,107220.0,1.07011609]
[1749477939291,0.7411467,107230.0,107220.0,0.87861706]
[1749477939292,0.9353467,107230.0,107220.0,0.87861706]
[1749477939490,0.93546629,107230.0,107220.0,0.77831706]
[1749477939987,0.93546629,107230.0,107220.0,0.57469453]
[1749477940395,0.93546629,107230.0,107220.0,0.47969453]
[1749477940396,1.37008805,107230.0,107220.0,0.47969453]
[1749477943287,0.91544805,107230.0,107220.0,0.29327053]
[1749477943494,1.67554708,107230.0,107220.0,0.29327053]
[1749477944301,1.48404805,107230.0,107220.0,0.29327053]
[1749477944895,1.67554708,107230.0,107220.0,0.29327053]
[1749477945201,1.83024708,107230.0,107220.0,0.29327053]
[1749477946096,1.26164708,107230.0,107220.0,0.29327053]
[1749477946297,1.26164708,107230.0,107220.0,0.47969463]
[1749477946298,1.63874805,107230.0,107220.0,0.47969463]
[1749477946503,1.63874805,107230.0,107220.0,0.29327053]
[1749477947902,1.48404805,107230.0,107220.0,0.29327053]
[1749477948697,1.83024708,107230.0,107220.0,0.29327053]
[1749477948900,2.22100647,107230.0,107220.0,0.29327053]
[1749477950395,2.17513413,107230.0,107220.0,0.29327053]
[1749477952198,2.17509413,107230.0,107220.0,0.29327053]
[1749477952897,1.1858911,107230.0,107220.0,0.29327053]
[1749477953099,0.9166711,107230.0,107220.0,0.48476956]
[1749477953303,1.1916911,107230.0,107220.0,0.86169366]
[1749477953500,0.6227711,107230.0,107220.0,0.86169366]
[1749477953700,1.19006805,107230.0,107220.0,0.86169366]
[1749477954003,1.18966805,107230.0,107220.0,0.86169366]
[1749477954207,1.19006805,107230.0,107220.0,0.86169366]
[1749477954409,1.18966805,107230.0,107220.0,0.86169366]
[1749477954698,0.62154805,107230.0,107220.0,0.86169366]
[1749477954910,1.19006805,107230.0,107220.0,0.86169366]
[1749477955405,0.62154805,107230.0,107220.0,0.86169366]
[1749477955597,0.07434135,107230.0,107220.0,1.22249366]
[1749477955797,1.07594805,107230.0,107220.0,0.86169366]
[1749477956103,1.07554805,107230.0,107220.0,0.86169366]
[1749477956298,1.07594805,107230.0,107220.0,0.86169366]
[1749477957305,1.07594805,107230.0,107220.0,0.86661503]
[1749477960808,1.07594805,107230.0,107220.0,0.67019463]
[1749477961107,1.07594805,107230.0,107220.0,0.48377053]
[1749477961513,1.23064805,107230.0,107220.0,0.48377053]
[1749477961695,1.42024805,107230.0,107220.0,0.38677053]
[1749477962007,1.51224805,107230.0,107220.0,0.29327053]
[1749477966713,1.51387108,107230.0,107220.0,0.29327053]
[1749477966898,1.71029148,107230.0,107220.0,0.29327053]
[1749477967106,1.80355548,107230.0,107220.0,0.29327053]
[1749477967307,1.80355548,107230.0,107220.0,0.25914603]
[1749477968715,1.80355548,107230.0,107220.0,0.21634023]
[1749477970215,1.34915548,107230.0,107220.0,0.21634023]
[1749477970410,1.91703548,107230.0,107220.0,0.21634023]
[1749477971616,1.91699548,107230.0,107220.0,0.21634023]
[1749477971916,1.72017508,107230.0,107220.0,0.31354023]
[1749477972101,1.15273508,107230.0,107220.0,0.40544023]
[1749477972303,1.72057508,107230.0,107220.0,0.40544023]
[1749477972515,1.15273508,107230.0,107220.0,0.40544023]
[1749477972718,1.62857508,107230.0,107220.0,0.40544023]
[1749477973213,0.77787108,107230.0,107220.0,0.40544023]
[1749477973414,0.77747108,107230.0,107220.0,0.40544023]
[1749477973619,1.34368805,107230.0,107220.0,0.40544023]
[1749477974209,0.77624805,107230.0,107220.0,0.40544023]
[1749477974407,1.34364805,107230.0,107220.0,0.40544023]
[1749477974813,1.34404805,107230.0,107220.0,0.40544023]
[1749477975911,1.54046845,107230.0,107220.0,0.30824023]
[1749477976210,1.82129151,107230.0,107220.0,0.21634023]
[1749477976616,1.82129151,107230.0,107220.0,0.20708683]
[1749477977620,1.82129151,107230.0,107220.0,0.17218863]
[1749477977813,1.82129151,107230.0,107220.0,0.26545046]
[1749477978211,1.82129151,107230.0,107220.0,0.25950477]
[1749477978611,1.91455551,107230.0,107220.0,0.25695731]
[1749477979825,1.82129151,107230.0,107220.0,0.25695731]
[1749477982721,1.62487111,107230.0,107220.0,0.25695731]
[1749477982922,1.82129151,107230.0,107220.0,0.25695731]
[1749477983323,1.8164973,107230.0,107220.0,0.25695731]
[1749477984028,1.62487111,107230.0,107220.0,0.25695731]
[1749477984221,1.8164973,107230.0,107220.0,0.25695731]
[1749477984619,1.62487111,107230.0,107220.0,0.25695731]
[1749477984822,1.7245973,107230.0,107220.0,0.44565731]
[1749477985227,1.5372973,107230.0,107220.0,0.44565731]
[1749477985415,0.77747111,107230.0,107220.0,0.44565731]
[1749477985619,1.34547111,107230.0,107220.0,0.44565731]
[1749477986024,1.34507111,107230.0,107220.0,0.44565731]
[1749477986225,1.34547111,107230.0,107220.0,0.44565731]
[1749477987131,1.5370973,107230.0,107220.0,0.44565731]
[1749477987329,1.54193158,107230.0,107220.0,0.44565731]
[1749477988922,1.54185158,107230.0,107220.0,0.44565731]
[1749477989117,0.77787111,107230.0,107220.0,0.44565731]
[1749477989322,1.34539111,107230.0,107220.0,0.44565731]
[1749477989923,1.54185158,107230.0,107220.0,0.44565731]
[1749477990534,1.85866804,107230.0,107220.0,0.44565731]
[1749477991533,1.85866775,107230.0,107220.0,0.35515731]
[1749477991935,1.85866775,107230.0,107220.0,0.28401731]
[1749477993134,1.85866775,107230.0,107220.0,0.27513766]
[1749477994030,0.82328728,107230.0,107220.0,0.27513766]
[1749477994232,0.82328728,107230.0,107220.0,0.37043766]
[1749477994431,1.34487111,107230.0,107220.0,0.37043766]
[1749477994734,1.34527111,107230.0,107220.0,0.37043766]
[1749477998329,1.54173158,107230.0,107220.0,0.37043766]
[1749477998729,1.58722347,107230.0,107220.0,0.37043766]
[1749477999242,1.68362347,107230.0,107220.0,0.36408263]
[1749477999941,1.68362347,107230.0,107220.0,0.36086774]
[1749478000241,1.68362347,107230.0,107220.0,0.35798033]
[1749478000440,0.3411241,107220.0,107210.0,0.08964027]
[1749478000640,0.89838457,107220.0,107210.0,0.08964027]
[1749478000936,0.7019241,107220.0,107210.0,0.1829021]
[1749478001530,0.7019241,107220.0,107210.0,0.1839021]
[1749478002835,0.7019241,107220.0,107210.0,0.3839021]
[1749478003045,0.7019241,107220.0,107210.0,0.3829021]
[1749478004135,0.7019241,107220.0,107210.0,0.5668021]
[1749478007236,0.8935406,107220.0,107210.0,0.5668021]
[1749478009550,0.7019241,107220.0,107210.0,0.5668021]
[1749478009744,0.8935406,107220.0,107210.0,0.5668021]
[1749478010140,1.4602206,107220.0,107210.0,0.5668021]
[1749478016437,1.2686041,107220.0,107210.0,0.5668021]
[1749478016636,1.4602206,107220.0,107210.0,0.5668021]
[1749478017250,1.2686041,107220.0,107210.0,0.5668021]
[1749478017452,1.4602206,107220.0,107210.0,0.5668021]
[1749478020852,1.4602206,107220.0,107210.0,0.54768418]
[1749478021054,1.4602206,107220.0,107210.0,0.29326183]
[1749478021255,1.6442206,107220.0,107210.0,0.29326183]
[1749478022350,1.9738685,107220.0,107200.0,0.12124601]
[1749478022540,0.2013147,107200.0,107170.0,0.43674525]
[1749478022744,0.1865458,107150.0,107140.0,0.46452998]
[1749478022945,1.09859615,107150.0,107140.0,0.46452998]
[1749478023152,1.09859615,107150.0,107140.0,0.343328]
[1749478023343,1.09859615,107150.0,107140.0,0.43662463]
[1749478023545,1.11604364,107150.0,107140.0,0.09329663]
[1749478023747,1.1161484,107150.0,107140.0,0.09329663]
[1749478024255,1.1111484,107150.0,107140.0,0.18399663]
[1749478024650,1.1111484,107150.0,107140.0,0.18599663]
[1749478025158,1.1111084,107150.0,107140.0,0.18599663]
[1749478025358,1.1111084,107150.0,107140.0,0.18799663]
[1749478025566,1.1111084,107150.0,107140.0,0.28009663]
[1749478025755,1.1111084,107150.0,107140.0,0.37539663]
[1749478025951,1.3027249,107150.0,107140.0,0.37539663]
[1749478026445,1.3762953,107150.0,107140.0,0.37539663]
[1749478026647,1.1847188,107150.0,107140.0,0.37539663]
[1749478026949,0.45192265,107150.0,107140.0,0.95357623]
[1749478027256,0.09112265,107150.0,107140.0,1.65770423]
[1749478027453,0.84442835,107150.0,107140.0,1.65770423]
[1749478027752,0.84402835,107150.0,107140.0,0.57539663]
[1749478027945,1.20522835,107150.0,107140.0,0.57539663]
[1749478028351,1.39684485,107150.0,107140.0,0.57539663]
[1749478028651,1.39684485,107150.0,107140.0,0.58817394]
[1749478028854,1.39684485,107150.0,107140.0,0.58817962]
[1749478029154,1.39684485,107150.0,107140.0,0.58819196]
[1749478029550,1.39684485,107150.0,107140.0,0.57539663]
[1749478031055,1.39684485,107150.0,107140.0,0.58820315]
[1749478031255,1.39684485,107150.0,107140.0,0.57539663]
[1749478032143,1.20522835,107150.0,107140.0,0.76195973]
[1749478032348,1.20486835,107150.0,107140.0,0.57539663]
[1749478032548,1.20446835,107150.0,107140.0,0.57539663]
[1749478032756,1.20486835,107150.0,107140.0,0.57539663]
[1749478032952,0.26291484,107150.0,107140.0,0.95357623]
[1749478033148,0.82887484,107150.0,107140.0,0.95357623]
[1749478033349,0.82887484,107150.0,107140.0,1.31437623]
[1749478033649,0.26291484,107150.0,107140.0,1.31437623]
[1749478033849,0.82887484,107150.0,107140.0,1.31437623]
[1749478034648,0.18667957,107160.0,107150.0,0.1865457]
[1749478034649,0.39302717,107160.0,107150.0,0.1865457]
[1749478034953,0.76960658,107160.0,107150.0,0.8285622]
[1749478035146,0.77000658,107160.0,107150.0,0.9218822]
[1749478035349,0.77000658,107160.0,107150.0,1.01520495]
[1749478035755,0.77110183,107160.0,107150.0,1.01520495]
[1749478036456,0.20514183,107160.0,107150.0,1.01520495]
[1749478036661,0.3462291,107170.0,107160.0,0.1865283]
[1749478036848,0.42448858,107190.0,107160.0,0.8800613]
[1749478036849,0.06369028,107190.0,107160.0,0.8800613]
[1749478037054,0.40988658,107190.0,107180.0,0.73891]
[1749478037360,0.75004658,107190.0,107180.0,0.73891]
[1749478037560,0.74964658,107190.0,107180.0,0.923006]
[1749478037757,0.74964658,107190.0,107180.0,1.019306]
[1749478037758,0.7501482,107190.0,107180.0,1.019306]
[1749478038064,0.76700283,107190.0,107180.0,1.11262004]
[1749478038354,0.76696283,107190.0,107180.0,0.28041404]
[1749478038660,1.12776283,107190.0,107180.0,0.46790754]
[1749478038959,1.12776283,107190.0,107180.0,0.46990754]
[1749478039260,1.12776283,107190.0,107180.0,0.47503054]
[1749478039567,1.12776283,107190.0,107180.0,0.66152404]
[1749478040157,1.12776283,107190.0,107180.0,0.56463054]
[1749478040356,1.12776283,107190.0,107180.0,0.55950754]
[1749478040571,1.12776283,107190.0,107180.0,0.37301404]
[1749478040758,1.20254069,107190.0,107180.0,0.37301404]
[1749478041159,1.48875719,107190.0,107180.0,0.18591404]
[1749478041357,1.58015719,107190.0,107180.0,0.18591404]
[1749478041552,1.58015719,107190.0,107180.0,0.47741404]
[1749478042363,1.67405719,107190.0,107180.0,0.47741404]
[1749478042559,1.67405719,107190.0,107180.0,0.38591404]
[1749478042858,1.67405719,107190.0,107180.0,0.29631404]
[1749478043070,2.09697719,107190.0,107180.0,0.29631404]
[1749478043957,0.1864935,107180.0,107170.0,0.00014027]
[1749478044165,1.03989,107180.0,107170.0,0.00014027]
[1749478044559,1.03989,107180.0,107170.0,0.0934369]
[1749478045063,1.03989,107180.0,107170.0,0.0954369]
[1749478045367,1.49952489,107180.0,107170.0,0.0954369]
[1749478045667,1.49952489,107180.0,107170.0,0.2954369]
[1749478046358,0.93384489,107180.0,107170.0,0.2954369]
[1749478046667,1.49952489,107180.0,107170.0,0.2954369]
[1749478046863,1.50152489,107180.0,107170.0,0.2934369]
[1749478048665,0.93584489,107180.0,107170.0,0.2934369]
[1749478048863,1.50148489,107180.0,107170.0,0.2934369]
[1749478050054,1.50148489,107180.0,107170.0,0.2609739]
[1749478050055,1.74948889,107180.0,107170.0,0.2609739]
[1749478050260,1.74948889,107180.0,107170.0,0.25327592]
[1749478050764,0.186563,107140.0,107130.0,0.00011032]
[1749478050965,1.09780948,107140.0,107130.0,0.08881032]
[1749478051166,1.09792498,107140.0,107130.0,0.18211566]
[1749478051367,1.09792498,107140.0,107130.0,0.27081566]
[1749478052662,0.73712498,107140.0,107130.0,0.27081566]
[1749478053059,0.73712498,107140.0,107130.0,0.47081566]
[1749478053474,0.73712498,107140.0,107130.0,0.47381566]
[1749478053771,0.73712498,107140.0,107130.0,0.47681566]
[1749478053772,1.09792498,107140.0,107130.0,0.47681566]
[1749478055575,0.73712498,107140.0,107130.0,0.66339606]
[1749478055875,0.73708498,107140.0,107130.0,0.66339606]
[1749478056169,0.17152498,107140.0,107130.0,0.66339606]
[1749478056367,0.0001155,107140.0,107130.0,1.31419145]
[1749478056674,0.4529955,107140.0,107130.0,1.56419145]
[1749478056869,0.4529955,107140.0,107130.0,1.76674754]
[1749478057371,0.4529955,107140.0,107130.0,1.56419145]
[1749478057568,0.4529555,107140.0,107130.0,1.56419145]
[1749478057776,0.00014027,107150.0,107140.0,0.1865631]
[1749478057974,0.1865416,107160.0,107150.0,0.1865456]
[1749478058269,0.5006895,107170.0,107160.0,0.1865282]
[1749478058270,0.2797854,107170.0,107160.0,0.1865282]
[1749478058569,0.8453054,107170.0,107160.0,1.11519158]
[1749478058872,0.845822,107170.0,107160.0,0.37123146]
[1749478059178,1.40327339,107170.0,107160.0,0.09333146]
[1749478059376,1.68287339,107170.0,107160.0,0.09333146]
[1749478060262,1.83757339,107170.0,107160.0,0.09333146]
[1749478060667,1.83957339,107170.0,107160.0,0.09333146]
[1749478064369,1.83957339,107170.0,107160.0,0.29333146]
[1749478066089,1.83957339,107170.0,107160.0,0.06615909]
[1749478066271,1.83957339,107170.0,107160.0,0.15947313]
[1749478066772,1.83957339,107170.0,107160.0,0.03595893]
[1749478066973,1.83957339,107170.0,107160.0,3e-08]
[1749478068578,0.186563,107140.0,107130.0,0.18941032]
[1749478068774,1.112363,107140.0,107130.0,0.18941032]
[1749478068974,1.09720854,107140.0,107130.0,0.18941032]
[1749478069278,1.0805,107140.0,107110.0,0.56380609]
[1749478069476,0.1866327,107100.0,107090.0,0.2865]
[1749478069676,1.34837851,107100.0,107090.0,0.15089398]
[1749478069871,1.33931446,107100.0,107090.0,0.25743597]
[1749478070074,1.33931446,107100.0,107090.0,0.25743596]
[1749478070380,1.33939797,107100.0,107090.0,0.44423415]
[1749478070586,1.32939797,107100.0,107090.0,0.45744178]
[1749478070774,0.87715797,107100.0,107090.0,0.45744176]
[1749478070981,1.36095621,107100.0,107090.0,0.45744094]
[1749478071285,1.36095621,107100.0,107090.0,0.44723415]
[1749478071485,1.36055621,107100.0,107090.0,0.44723415]
[1749478071681,1.36095621,107100.0,107090.0,0.46031111]
[1749478071985,1.36095621,107100.0,107090.0,0.44723415]
[1749478072182,1.5576076,107100.0,107090.0,0.44723415]
[1749478072382,1.5176076,107100.0,107090.0,0.43518665]
[1749478072582,1.7031076,107100.0,107090.0,0.42305017]
[1749478073079,1.7031076,107100.0,107090.0,0.43612382]
[1749478073280,1.50645621,107100.0,107090.0,0.43612273]
[1749478073581,1.50645621,107100.0,107090.0,0.43611749]
[1749478073879,1.32059621,107100.0,107090.0,0.51325017]
[1749478074085,1.32059621,107100.0,107090.0,0.52625924]
[1749478074286,1.39532766,107100.0,107090.0,0.52626556]
[1749478074483,1.39532766,107100.0,107090.0,0.51325017]
[1749478074686,1.39532766,107100.0,107090.0,0.52627261]
[1749478074878,1.39528766,107100.0,107090.0,0.51325017]
[1749478075074,1.39528766,107100.0,107090.0,0.52627674]
[1749478075286,0.94304766,107100.0,107090.0,0.52627671]
[1749478075589,1.39488766,107100.0,107090.0,0.70990156]
[1749478075778,1.39528766,107100.0,107090.0,0.51325017]
[1749478076278,1.39528766,107100.0,107090.0,0.52623956]
[1749478076588,1.4257136,107100.0,107090.0,0.52623956]
[1749478076782,1.4257136,107100.0,107090.0,0.51325017]
[1749478076982,1.4257136,107100.0,107090.0,0.52645978]
[1749478077287,1.4257136,107100.0,107090.0,0.51325017]
[1749478077486,1.4257136,107100.0,107090.0,0.52646183]
[1749478077689,1.4257136,107100.0,107090.0,0.51325017]
[1749478077882,1.4257136,107100.0,107090.0,0.52645785]
[1749478078080,1.4257136,107100.0,107090.0,0.5264547]
[1749478078384,1.4257136,107100.0,107090.0,0.5264546]
[1749478078585,1.4257136,107100.0,107090.0,0.51325017]
[1749478078786,1.4257136,107100.0,107090.0,0.52645458]
[1749478078987,1.410554,107100.0,107090.0,0.52645462]
[1749478079186,1.410554,107100.0,107090.0,0.51325017]
[1749478079388,1.370554,107100.0,107090.0,0.52645396]
[1749478079687,1.36145824,107100.0,107090.0,0.52645462]
[1749478079892,1.36145824,107100.0,107090.0,0.52645463]
[1749478080089,1.36145824,107100.0,107090.0,0.52645529]
[1749478080393,1.36145824,107100.0,107090.0,0.52645528]
[1749478080588,1.36145824,107100.0,107090.0,0.52645661]
[1749478080788,1.36145824,107100.0,107090.0,0.51325017]
[1749478081482,1.36145824,107100.0,107090.0,0.52645665]
[1749478081992,1.36145824,107100.0,107090.0,0.71310675]
[1749478082199,1.36145824,107100.0,107090.0,0.52645665]
[1749478082488,1.36145824,107100.0,107090.0,0.33855665]
[1749478082692,1.36145824,107100.0,107090.0,0.33837083]
[1749478082693,1.63515824,107100.0,107090.0,0.33837083]
[1749478082879,1.63515824,107100.0,107090.0,0.33836688]
[1749478083089,1.63515824,107100.0,107090.0,0.33839332]
[1749478083691,1.78985824,107100.0,107090.0,0.32535017]
[1749478083895,1.78985824,107100.0,107090.0,0.33839722]
[1749478084090,1.78985824,107100.0,107090.0,0.33839721]
[1749478084683,1.78985824,107100.0,107090.0,0.32535017]
[1749478085184,1.78985824,107100.0,107090.0,0.33839849]
[1749478085389,1.90261824,107100.0,107090.0,0.33839848]
[1749478085595,1.90261824,107100.0,107090.0,0.3383985]
[1749478085889,1.90261824,107100.0,107090.0,0.33838449]
[1749478086094,1.89655399,107100.0,107090.0,0.33845366]
[1749478086297,1.89655399,107100.0,107090.0,0.32535017]
[1749478086598,1.85655399,107100.0,107090.0,0.33845364]
[1749478086992,1.85655399,107100.0,107090.0,0.32535017]
[1749478087290,1.85655399,107100.0,107090.0,0.33845359]
[1749478087479,1.85655399,107100.0,107090.0,0.52510379]
[1749478087682,1.11375399,107100.0,107090.0,0.51200037]
[1749478087888,1.12824129,107100.0,107090.0,0.79792696]
[1749478088083,1.31487399,107100.0,107090.0,0.99449574]
[1749478088293,1.31527399,107100.0,107090.0,0.99449111]
[1749478088591,1.31487399,107100.0,107090.0,0.79782811]
[1749478088893,1.31487399,107100.0,107090.0,0.79782374]
[1749478088894,1.31527399,107100.0,107090.0,0.79782374]
[1749478089081,1.31527399,107100.0,107090.0,0.79782377]
[1749478089487,0.86315399,107100.0,107090.0,0.78490037]
[1749478089689,1.30617835,107100.0,107090.0,0.78490037]
[1749478090189,0.85405835,107100.0,107090.0,0.79781236]
[1749478090391,1.30613835,107100.0,107090.0,0.79781236]
[1749478090691,1.30613835,107100.0,107090.0,0.78490037]
[1749478090995,0.94533835,107100.0,107090.0,0.79778598]
[1749478091292,1.1047536,107100.0,107090.0,0.79778598]
[1749478091499,1.1043536,107100.0,107090.0,0.79767681]
[1749478091686,1.1047536,107100.0,107090.0,0.79767455]
[1749478091887,1.1047536,107100.0,107090.0,0.79767454]
[1749478092192,0.7439536,107100.0,107090.0,0.79766718]
[1749478092593,0.72879461,107100.0,107090.0,0.79777232]
[1749478092995,0.72839461,107100.0,107090.0,0.98155176]
[1749478093195,0.72879461,107100.0,107090.0,0.98155176]
[1749478093591,0.23678186,107100.0,107090.0,0.99441359]
[1749478093900,0.66719957,107100.0,107090.0,0.99436654]
[1749478094198,0.66759957,107100.0,107090.0,0.99435936]
[1749478094393,0.66759957,107100.0,107090.0,0.98155176]
[1749478094589,0.00014027,107110.0,107100.0,0.1866327]
[1749478094792,0.1866153,107110.0,107100.0,1.01469349]
[1749478094982,0.62742312,107110.0,107100.0,1.06135009]
[1749478095182,0.54430753,107120.0,107110.0,0.1866153]
[1749478095386,0.99630753,107120.0,107110.0,0.65576669]
[1749478095687,0.99641468,107120.0,107110.0,0.65576669]
[1749478095888,0.99641468,107120.0,107110.0,0.74913301]
[1749478096089,0.88389468,107120.0,107110.0,0.74913301]
[1749478096495,0.88789468,107120.0,107110.0,0.74913301]
[1749478098400,0.88781468,107120.0,107110.0,0.77713301]
[1749478098798,0.88781468,107120.0,107110.0,0.58048162]
[1749478099093,0.43589468,107120.0,107110.0,0.58048162]
[1749478099297,0.88781468,107120.0,107110.0,0.58048162]
[1749478100401,0.29592338,107120.0,107110.0,1.23129301]
[1749478100699,0.45188,107120.0,107110.0,1.09132771]
[1749478100901,0.45188,107120.0,107110.0,1.27794301]
[1749478101198,0.1865843,107130.0,107120.0,0.1865979]
[1749478101391,0.6384243,107130.0,107120.0,0.7330979]
[1749478101587,0.6384243,107130.0,107120.0,0.92974929]
[1749478101800,0.66955345,107130.0,107120.0,1.02310689]
[1749478102600,0.66955345,107130.0,107120.0,0.4656555]
[1749478102601,0.20256033,107130.0,107120.0,0.4656555]
[1749478102798,0.65436033,107130.0,107120.0,0.66230689]
[1749478102990,0.65636033,107130.0,107120.0,0.66230689]
[1749478103191,0.48492915,107130.0,107120.0,0.66230689]
[1749478103501,0.48592915,107130.0,107120.0,1.02310689]
[1749478103698,0.55974682,107130.0,107120.0,1.02310689]
[1749478104592,0.55970682,107130.0,107120.0,1.02310689]
[1749478104793,0.55966682,107130.0,107120.0,1.02310689]
[1749478105001,0.55766682,107130.0,107120.0,1.02310689]
[1749478105201,0.74424732,107130.0,107120.0,1.02410689]
[1749478105395,0.74324732,107130.0,107120.0,1.02410689]
[1749478105595,0.55666682,107130.0,107120.0,1.02410689]
[1749478105998,0.74324722,107130.0,107120.0,0.8274555]
[1749478106197,0.64616682,107130.0,107120.0,1.02410689]
[1749478106397,0.73996682,107130.0,107120.0,1.02410689]
[1749478107592,0.92654732,107130.0,107120.0,1.02410689]
[1749478107795,0.92654732,107130.0,107120.0,0.66330689]
[1749478108002,0.92654732,107130.0,107120.0,1.02410689]
[1749478108203,1.28734732,107130.0,107120.0,0.2809555]
[1749478108404,1.37914732,107130.0,107120.0,0.2809555]
[1749478109305,1.37914732,107130.0,107120.0,0.4809555]
[1749478109511,1.49166732,107130.0,107120.0,0.4809555]
[1749478109803,1.49166732,107130.0,107120.0,0.2943576]
[1749478110009,1.84301871,107130.0,107120.0,0.2943576]
[1749478110309,1.84801871,107130.0,107120.0,0.2933576]
[1749478113202,1.65136732,107130.0,107120.0,0.2933576]
[1749478114815,1.61136732,107130.0,107120.0,0.2933576]
[1749478115907,1.61143434,107130.0,107120.0,0.2933576]
[1749478116107,1.79292818,107130.0,107120.0,0.2933576]
[1749478116411,1.82398224,107130.0,107120.0,0.2933576]
[1749478117006,2.07560679,107130.0,107120.0,0.2933576]
[1749478117211,2.16895879,107130.0,107120.0,0.26566449]
[1749478117711,2.16895879,107130.0,107120.0,0.26109009]
[1749478118011,2.21602444,107130.0,107120.0,0.26109009]
[1749478118213,1.96602444,107130.0,107120.0,0.26109009]
[1749478118412,1.91895879,107130.0,107120.0,0.26109009]
[1749478118708,1.93578165,107130.0,107120.0,0.23389009]
[1749478119114,1.73913026,107130.0,107120.0,0.23389009]
[1749478119408,1.37154165,107130.0,107120.0,0.22589517]
[1749478119605,1.19405826,107130.0,107120.0,0.22589517]
[1749478119808,0.92683826,107130.0,107120.0,0.22589517]
[1749478120003,1.49123826,107130.0,107120.0,0.22589517]
[1749478120205,1.4744154,107130.0,107120.0,0.22589517]
[1749478120709,1.4744154,107130.0,107120.0,0.41249317]
[1749478120710,0.9104154,107130.0,107120.0,0.41249317]
[1749478120908,1.47279085,107130.0,107120.0,0.41249317]
[1749478121110,1.47239085,107130.0,107120.0,0.41249317]
[1749478121315,0.08591035,107130.0,107120.0,0.96994456]
[1749478121610,0.08591035,107130.0,107120.0,1.14714456]
[1749478121611,0.53739035,107130.0,107120.0,1.14714456]
[1749478121819,0.82113909,107170.0,107120.0,1.53674716]
[1749478121820,0.11252,107170.0,107120.0,1.53674716]
[1749478122115,0.31521372,107180.0,107170.0,0.1865109]
[1749478122306,0.04711372,107180.0,107170.0,0.74396229]
[1749478122512,0.01706838,107190.0,107180.0,0.1864935]
[1749478122706,0.46854838,107190.0,107180.0,0.91754489]
[1749478122904,0.65512962,107190.0,107180.0,0.91761972]
[1749478123117,0.20364962,107190.0,107180.0,0.17367483]
[1749478123316,0.65548962,107190.0,107180.0,0.45349979]
[1749478123617,0.65548962,107190.0,107180.0,0.26700629]
[1749478123618,1.06358991,107190.0,107180.0,0.26700629]
[1749478123916,1.06358991,107190.0,107180.0,0.29498629]
[1749478123917,1.15208991,107190.0,107180.0,0.29498629]
[1749478124123,1.4384413,107190.0,107180.0,0.12138629]
[1749478124418,1.5256413,107190.0,107180.0,0.32138629]
[1749478124711,1.5256413,107190.0,107180.0,0.32238629]
[1749478125320,1.33198991,107190.0,107180.0,0.32138629]
[1749478125617,2.83298991,107190.0,107180.0,0.32138629]
[1749478125812,2.9060144,107190.0,107180.0,0.32138629]
[1749478126012,3.10466579,107190.0,107180.0,0.32138629]
[1749478126220,3.10366579,107190.0,107180.0,0.32138629]
[1749478126615,0.9575744,107190.0,107180.0,0.32138629]
[1749478126921,1.5206544,107190.0,107180.0,0.32138629]
[1749478127118,3.0206544,107190.0,107180.0,0.32138629]
[1749478127822,3.0210544,107190.0,107180.0,0.32138629]
[1749478128021,0.9575744,107190.0,107180.0,0.32138629]
[1749478128320,0.8947744,107190.0,107180.0,0.59177979]
[1749478128510,1.2551744,107190.0,107180.0,0.49228629]
[1749478128710,0.9837744,107190.0,107180.0,0.67877979]
[1749478128912,1.4325744,107190.0,107180.0,0.67877979]
[1749478129612,1.3435744,107190.0,107180.0,0.67877979]
[1749478129813,1.3435744,107190.0,107180.0,0.76627979]
[1749478130325,1.3435744,107190.0,107180.0,0.67877979]
[1749478130515,1.4325744,107190.0,107180.0,0.32138629]
[1749478132223,1.62922579,107190.0,107180.0,0.32138629]
[1749478132825,3.12922579,107190.0,107180.0,0.32138629]
[1749478133618,2.9325744,107190.0,107180.0,0.32138629]
[1749478134112,2.9325744,107190.0,107180.0,0.50787979]
[1749478134113,0.7801744,107190.0,107180.0,0.50787979]
[1749478134317,0.8946144,107190.0,107180.0,0.59447979]
[1749478134615,0.8946145,107190.0,107180.0,0.97343118]
[1749478134820,0.3313745,107190.0,107180.0,0.97343118]
[1749478135130,0.47265352,107190.0,107180.0,1.42752718]
[1749478135319,0.47261352,107190.0,107180.0,1.42752718]
[1749478135518,0.47261352,107190.0,107180.0,1.23087579]
[1749478135519,0.65868962,107190.0,107180.0,1.23087579]
[1749478135719,0.65868962,107190.0,107180.0,1.06672718]
[1749478136223,0.65908962,107190.0,107180.0,1.06672718]
[1749478136424,0.65908962,107190.0,107180.0,1.42752718]
[1749478136622,0.65908962,107190.0,107180.0,1.06672718]
[1749478137530,0.47257352,107190.0,107180.0,1.42752718]
[1749478137822,0.65904972,107190.0,107180.0,1.42752718]
[1749478138028,0.20804972,107190.0,107180.0,1.42752718]
[1749478138227,0.65904972,107190.0,107180.0,1.42752718]
[1749478139015,0.65904972,107190.0,107180.0,1.67752718]
[1749478139016,0.02157352,107190.0,107180.0,1.67752718]
[1749478139329,0.0932179,107220.0,107210.0,0.1864413]
[1749478139330,0.1864349,107220.0,107210.0,0.1864413]
[1749478139623,0.7495149,107220.0,107210.0,0.74389269]
[1749478139829,0.0004,107220.0,107210.0,1.00389269]
[1749478140023,0.0004,107220.0,107210.0,1.19046132]
[1749478140024,0.45092,107220.0,107210.0,1.19046132]
[1749478140226,0.79881249,107240.0,107230.0,0.1864066]
[1749478140422,1.24984497,107240.0,107230.0,0.1864066]
[1749478140629,0.32596497,107240.0,107230.0,0.2764066]
[1749478140827,0.88944497,107240.0,107230.0,0.54407713]
[1749478141031,0.74999478,107240.0,107230.0,0.90487713]
[1749478141223,0.74999478,107240.0,107230.0,0.54407713]
[1749478141717,0.74999478,107240.0,107230.0,0.45407713]
[1749478141718,0.91276283,107240.0,107230.0,0.45407713]
[1749478141917,0.91264283,107240.0,107230.0,0.45407713]
[1749478142129,1.27344283,107240.0,107230.0,0.45407713]
[1749478142424,0.96144243,107240.0,107230.0,0.45407713]
[1749478142625,1.32224243,107240.0,107230.0,0.45407713]
[1749478142923,0.95593382,107240.0,107230.0,0.09327053]
[1749478143118,1.60999382,107240.0,107230.0,0.09327053]
[1749478143323,1.95324982,107240.0,107230.0,0.09327053]
[1749478143723,0.1864416,107210.0,107200.0,0.00014027]
[1749478143917,1.30681299,107210.0,107200.0,0.00014027]
[1749478144118,1.47561299,107210.0,107200.0,0.00014027]
[1749478144321,0.91269299,107210.0,107200.0,0.0933934]
[1749478144520,1.47561299,107210.0,107200.0,0.0933934]
[1749478144921,1.47561299,107210.0,107200.0,0.0953934]
[1749478145426,1.47561299,107210.0,107200.0,0.0973934]
[1749478145637,0.3552416,107210.0,107200.0,0.3118421]
[1749478145826,1.2789616,107210.0,107200.0,0.3118421]
[1749478146025,1.2789616,107210.0,107200.0,0.1253834]